Cogmind - Beta 14 @@@ ROGUE MODE // 2024.09.29 @ 12:11:50 Player: saltine Result: Establishing 0b11! Performance ------------- Evolutions (9) 4500 Regions Visited (29) 5800 Robots Destroyed (232) 1160 Value Destroyed (8791) 8791 Prototype IDs (311) 6220 Alien Tech Used (1) 200 Bonus (35023) 35023 TOTAL SCORE: 61694 Bonus ------- High Alert Combat Kills 357 Follower Combat Kills 2908 Network Hubs Disabled 200 Aligned with FarCom 300 Met Data Miner 300 Met Warlord at Base 500 MAIN.C Attacked Warlord 500 Built Enhanced Grunts 300 A7 Reached Mainframe 300 Met R17 at Cetus 500 Met R17 at Research 2000 Met Warlord at Research 2000 Destroyed MAIN.C Guards 500 Met MAIN.C 5000 Hacked MAIN.C 300 Destroyed MAIN.C Shell 5000 Destroyed MAIN.C 10000 Met Warlord at Command 2000 Win 3000 Friendly Fire -942 Cogmind --------- Core Integrity 1402/1600 Matter 300/300 Energy 835/840 System Corruption 0% Temperature Cool (10) Movement Hovering (41) Location 0b11 Command Parts ------- > --- POWER (3) -------- Zero-point Reactor Vortex Chain Reactor > --- PROPULSION (7) --- Cooled Antigrav System Antigrav Array Combat Linear Gravjet Combat Linear Gravjet Combat Linear Gravjet Combat Linear Gravjet > --- UTILITY (12) ----- Experimental Cooling System Experimental Coolant Injector Experimental Coolant Injector Advanced Gravity Neutralizer Improved Melee Analysis Suite Advanced Melee Analysis Suite Experimental Transmission Jammer Experimental Reaction Control System Centrium Medium Armor Plating Advanced Focal Shield Antimissile System Experimental System Purifier > --- WEAPON (3) ------- Cooled Nova Cannon Null Cannon Graviton Cannon > --- INVENTORY (5) ---- Combat Linear Gravjet Tiamat Missile Launcher Plasma Lance Gamma Refractor Peak State ------------ > --- POWER ------------ Zero-point Reactor Vortex Chain Reactor > --- PROPULSION ------- Cooled Antigrav System Antigrav Array Combat Linear Gravjet Combat Linear Gravjet Combat Linear Gravjet Combat Linear Gravjet > --- UTILITY ---------- Experimental Cooling System Experimental Coolant Injector Experimental Coolant Injector Advanced Gravity Neutralizer Advanced Melee Analysis Suite Femtoactuators Experimental Transmission Jammer Experimental Reaction Control System Centrium Medium Armor Plating Advanced Focal Shield Antimissile System Experimental System Purifier > --- WEAPON ----------- Cooled Nova Cannon Null Cannon Graviton Cannon > --- INVENTORY -------- Combat Linear Gravjet Tiamat Missile Launcher Plasma Lance Gamma Refractor [Rating: 233] Favorites ----------- Power Micro Fission Core Engine Backup Power III Power Core Micro Fission Core Reactor Light Quantum Reactor Propulsion Light Treads Treads Light Treads Leg Aluminum Leg Wheel Armored Huge Wheel Hover Unit Combat Linear Gravjet Flight Unit Cooled Impulse Thruster Utility Improved Hacking Suite Device Advanced Sensor Array Storage High-capacity Storage Unit Processor Advanced Signal Interpreter Hackware Improved Hacking Suite Protection Medium Armor Plating Weapon Heavy Assault Rifle Energy Gun Backup Laser III Energy Cannon Heavy Phase Cannon Ballistic Gun Heavy Assault Rifle Ballistic Cannon Graviton Cannon Launcher Long-range Missile Launcher Special Weapon Improved Plasma Cutter Impact Weapon Shock Maul Slashing Weapon Sigix Broadsword Piercing Weapon Plasma Lance Special Melee Weapon Advanced Datajack Build | -11 -10 -10 -10 -9 -8 -7 -7 -7 -6 -6 -6 -6 -5 -5 -5 -5 -5 -4 -4 -4 -4 -4 -4 -3 -3 -2 -2 -1 -1 ------- Run | Yrd Mat Min Exi Min Mat Fac Was Fac Fac Low Low Dat Pro Fac Upp Upp War Pro Fac Ext Cet Arc Hub Res Tes Res Qua Acc Com Slots Evolved 18 | . . . . . 4 2 . . 2 . . . . 2 . . . . 2 . . . . 2 . 2 . 2 . Power 2 | . . . . . . . . . . . . . . 1 . . . . . . . . . . . . . 1 . Propulsion 5 | . . . . . 1 . . . 1 . . . . . . . . . 2 . . . . . . 1 . . . Utility 10 | . . . . . 2 2 . . 1 . . . . 1 . . . . . . . . . 2 . 1 . 1 . Weapon 1 | . . . . . 1 . . . . . . . . . . . . . . . . . . . . . . . . Parts Attached 356 | 5 8 4 2 1 38 9 5 22 6 9 5 12 1 22 6 4 18 8 6 5 7 10 2 20 28 22 4 4 63 Power 35 | . 3 1 . . 3 2 . 1 1 1 . . . 1 . . 2 . . . . 3 . 4 1 5 . 1 6 Engine 11 | . 3 1 . . 1 . . . . 1 . . . . . . 2 . . . . 3 . . . . . . . Core 7 | . . . . . 2 2 . 1 . . . . . 1 . . . . . . . . . 1 . . . . . Reactor 17 | . . . . . . . . . 1 . . . . . . . . . . . . . . 3 1 5 . 1 6 Propulsion 73 | 3 2 1 1 . 12 . 1 5 1 1 2 2 . 8 . . 5 . 1 . . . 2 1 8 3 . . 14 Treads 30 | 3 2 1 1 . 12 . 1 5 1 1 2 . . . . . . . . . . . . . . . . . 1 Leg 3 | . . . . . . . . . . . . . . . . . . . . . . . . . . . . . 3 Wheel 5 | . . . . . . . . . . . . 2 . 3 . . . . . . . . . . . . . . . Hover 21 | . . . . . . . . . . . . . . 2 . . . . . . . . . . 7 3 . . 9 Flight 14 | . . . . . . . . . . . . . . 3 . . 5 . 1 . . . 2 1 1 . . . 1 Utility 126 | 1 1 . 1 1 8 4 3 8 1 2 . 3 1 9 4 3 7 6 4 3 3 2 . 8 13 8 1 1 20 Device 72 | 1 . . . . 2 1 1 4 . . . . . 4 2 3 5 5 1 2 1 . . 6 12 5 1 . 16 Storage 6 | . 1 . 1 . . . . . . . . 1 . 1 . . . 1 . . . . . 1 . . . . . Processor 12 | . . . . . . 2 . 1 . . . 1 1 2 . . 1 . . 1 . . . . . 1 . 1 1 Hackware 10 | . . . . . . 1 . 1 . . . . . 2 . . . . 1 . . 2 . 1 1 . . . 1 Protection 26 | . . . . 1 6 . 2 2 1 2 . 1 . . 2 . 1 . 2 . 2 . . . . 2 . . 2 Artifact . | . . . . . . . . . . . . . . . . . . . . . . . . . . . . . . Weapon 122 | 1 2 2 . . 15 3 1 8 3 5 3 7 . 4 2 1 4 2 1 2 4 5 . 7 6 6 3 2 23 Energy Gun 3 | . . . . . 1 . . . . . . . . . . . . . . . 1 . . . . . . . 1 Energy Cannon 37 | . . . . . . 1 1 . 1 2 1 2 . 2 1 . 2 2 . . . . . . 4 3 1 1 13 Ballistic Gun 42 | 1 2 2 . . 11 1 . 8 . 1 . 2 . . . . . . . . 3 3 . 6 2 . . . . Ballistic Cannon 11 | . . . . . . 1 . . . . 1 2 . . . . . . . 2 . . . . . . . . 5 Launcher 14 | . . . . . 3 . . . 2 2 1 1 . 1 1 . 1 . 1 . . . . 1 . . . . . Special Weapon 2 | . . . . . . . . . . . . . . . . 1 . . . . . . . . . . . . 1 Impact Weapon 2 | . . . . . . . . . . . . . . 1 . . 1 . . . . . . . . . . . . Slashing Weapon 2 | . . . . . . . . . . . . . . . . . . . . . . . . . . 1 1 . . Piercing Weapon 7 | . . . . . . . . . . . . . . . . . . . . . . . . . . 2 1 1 3 Special Melee Weapon 2 | . . . . . . . . . . . . . . . . . . . . . . 2 . . . . . . . Unidentified Prototypes 28 | . . . . . 1 . 1 1 . . . 1 . 4 . . 5 . 1 . 3 . . 1 3 5 1 . 1 Corrupted Parts 1 | . . . . . . . . . . . . 1 . . . . . . . . . . . . . . . . . System Corruption 4 | . . . . . . . . . . . . 4 . . . . . . . . . . . . . . . . . Parts Lost 62 | . . 5 . . 11 4 . 9 4 2 1 14 . . . . . 1 . . . . . 3 . 1 1 . 6 Power 11 | . . 1 . . 1 1 . 1 1 1 . 1 . . . . . . . . . . . 3 . . . . 1 Propulsion 11 | . . 2 . . 2 . . 3 1 . . 3 . . . . . . . . . . . . . . . . . Utility 20 | . . . . . 5 . . 2 . 1 . 6 . . . . . . . . . . . . . 1 1 . 4 Weapon 20 | . . 2 . . 3 3 . 3 2 . 1 4 . . . . . 1 . . . . . . . . . . 1 Highest Loss Streak 12 | . . 3 . . 9 2 . 3 2 1 1 12 . . . . . 1 . . . . . 3 . 1 1 . 2 To Critical Strikes . | . . . . . . . . . . . . . . . . . . . . . . . . . . . . . . Average Slot Usage (%) 87 | . 100 90 91 100 96 90 89 96 89 90 92 70 33 63 75 81 82 83 73 73 87 88 89 80 85 89 90 82 85 Engine 4 | . 14 13 14 14 4 . 2 3 . 1 6 4 . . . . 3 5 5 5 5 5 10 3 . . . . . Core 2 | . . . . . 4 6 4 3 3 . . . . 2 5 5 5 5 5 5 5 4 . 3 . . . . . Reactor 1 | . . . . . . . . . 2 4 . . . . . . . . . . . . . . 7 8 8 7 9 Treads 12 | . 28 19 20 28 26 23 23 20 18 20 19 14 . . . . . . . . . . . . . . . . . Hover 4 | . . . . . . . . . . . . . . . . . . . . . . . . . 18 20 21 20 22 Flight 4 | . . . . . . . . . . . . . . 8 11 11 14 17 21 21 21 21 21 19 1 . . . . Device 14 | . 14 14 14 1 7 13 15 16 13 13 13 11 . 13 17 17 13 14 14 13 16 15 10 10 12 18 16 16 25 Storage 5 | . 14 14 14 14 9 7 7 7 6 6 6 6 13 2 . . . . . . . . . 1 4 4 4 4 1 Processor 4 | . . . . . . 11 9 3 6 6 6 7 6 14 11 11 7 5 5 5 8 5 5 4 4 5 8 10 6 Hackware 7 | . . . . . . 5 7 10 13 7 6 6 6 9 11 11 11 11 10 10 10 15 21 21 22 13 13 12 8 Protection 5 | . . . . 12 17 . 5 5 6 11 13 8 . . 4 5 4 4 5 5 5 5 5 4 1 3 4 4 3 Energy Cannon 2 | . . . . . . 4 7 . 2 4 4 2 . 3 4 5 4 8 5 5 2 . . . 2 2 . . 4 Ballistic Gun 12 | . 28 27 28 28 26 13 . 21 14 11 10 4 . . . . . . . . 8 14 15 8 5 4 . . . Peak Build Rating 233 | 8 9 10 14 16 28 41 44 57 63 68 62 57 29 88 81 89 94 112 122 110 128 129 126 144 158 183 191 202 233 Average Rating 79 | 6 8 9 11 15 25 35 38 46 60 61 59 41 27 64 76 84 87 97 105 102 122 124 123 129 140 174 178 196 199 On Entrance 77 | 6 8 9 10 14 16 24 39 39 56 59 62 53 27 23 81 77 87 87 112 105 110 127 122 126 116 158 178 191 198 Naked Turns . | . . . . . . . . . . . . . . . . . . . . . . . . . . . . . . Heaviest Build 111 | 12 29 32 52 58 74 65 65 73 83 91 86 75 43 24 32 26 27 97 57 39 42 38 38 45 80 90 80 83 111 Greatest Support 111 | 40 40 40 40 40 60 60 60 90 110 110 110 71 28 26 26 26 27 27 40 40 40 40 44 51 80 91 91 91 111 Greatest Overweight (x) 14 | . 1 1 1 1 1 1 1 1 . . 1 1 14 1 1 . 1 3 1 . 1 . . 1 . 1 . . 1 Average Overweight (x) . | . . . . 1 . . . . . . . . 1 . . . . . . . . . . . . . . . . Largest Inventory Capacity 20 | 8 15 15 20 20 20 20 20 20 20 20 20 20 20 20 5 5 5 20 20 5 5 5 5 15 15 15 15 15 15 Average Capacity 13 | 8 13 15 15 20 20 20 20 20 20 20 20 20 20 5 5 5 5 7 5 5 5 5 5 8 15 15 15 15 8 Most Carried 20 | 8 15 15 15 20 20 18 20 20 20 20 20 19 13 10 5 5 5 14 12 5 5 5 5 15 15 15 15 15 15 Average Carried 12 | 6 13 13 13 17 19 16 19 18 19 16 18 15 9 4 4 4 4 6 5 5 4 4 5 8 14 14 14 14 8 Final Capacity 20 | 8 15 15 20 20 20 20 20 20 20 20 20 20 20 5 5 5 5 20 5 5 5 5 5 15 15 15 15 15 15 Final Carried 20 | 8 15 13 15 20 14 14 20 20 19 20 16 9 10 5 5 5 5 14 5 5 5 5 5 15 15 15 15 15 15 Class Distribution -------------------- 23% | Mutant 16% | Tank 11% | Commander-Sprinter 9% | Hacker-Mutant 6% | Hacker-Gladiator 5% | Hacker-Gunner 4% | Hacker-Sprinter Dominant Class ---------------- Mutant | -10/Materials Mutant | -10/Mines Mutant | -10/Exiles Mutant | -9/Mines Tank | -8/Materials Scavenger-Gunner | -7/Factory Mutant | -7/Waste Tank | -7/Factory Hacker-Gunner | -6/Factory Tank | -6/Lower Caves Tank | -6/Lower Caves Mutant | -6/Data Miner Mutant | -5/Proximity Caves Scout | -5/Factory Hacker-Mutant | -5/Upper Caves Hacker-Ninja | -5/Upper Caves Commander-Sprinter | -5/Warlord Commander-Mutant | -4/Proximity Caves Commander-Sprinter | -4/Factory Commander-Sprinter | -4/Extension Commander-Sprinter | -4/Cetus Commander-Sprinter | -4/Archives Commander-Sprinter | -4/Hub_04(d) Wizard-Sprinter | -3/Research Wizard-Mutant | -3/Testing Hacker-Gladiator | -2/Research Hacker-Gladiator | -2/Quarantine Hacker-Gladiator | -1/Access Hacker-Mutant | -1/Command Resources | -11 -10 -10 -10 -9 -8 -7 -7 -7 -6 -6 -6 -6 -5 -5 -5 -5 -5 -4 -4 -4 -4 -4 -4 -3 -3 -2 -2 -1 -1 ----------- Run | Yrd Mat Min Exi Min Mat Fac Was Fac Fac Low Low Dat Pro Fac Upp Upp War Pro Fac Ext Cet Arc Hub Res Tes Res Qua Acc Com Matter Collected 8454 | 217 580 218 20 76 1253 214 185 884 448 253 87 335 59 82 269 89 195 80 60 20 198 374 . 550 438 279 20 . 971 Remotely . | . . . . . . . . . . . . . . . . . . . . . . . . . . . . . . Salvage Created 9455 | 32 502 314 . 213 1801 204 77 1204 623 582 101 119 . . 167 . . 426 28 142 41 308 . 457 248 309 61 . 1496 Parts 492 | 4 30 16 . 10 112 12 . 65 47 22 6 2 . . 5 . . 7 5 12 3 21 . 28 22 6 7 . 50 Haulers Intercepted 13 | . 2 . . . 5 . . 2 . . . . . . . . . . . . . . . 1 . 3 . . . Recyclers Shooed 10 | . . . . . 3 . . 1 2 . . . . . . . . 1 . . . . . 2 . . . . 1 Parts Field Recycled . | . . . . . . . . . . . . . . . . . . . . . . . . . . . . . . Retrieved Matter . | . . . . . . . . . . . . . . . . . . . . . . . . . . . . . . Parts Self-Destructed 62 | . . . . . . . . . . 16 3 . . . 4 . . 39 . . . . . . . . . . . Prevented 4 | . . . . . . . . . . . . . . . . . . 4 . . . . . . . . . . . Kills | -11 -10 -10 -10 -9 -8 -7 -7 -7 -6 -6 -6 -6 -5 -5 -5 -5 -5 -4 -4 -4 -4 -4 -4 -3 -3 -2 -2 -1 -1 ------- Run | Yrd Mat Min Exi Min Mat Fac Was Fac Fac Low Low Dat Pro Fac Upp Upp War Pro Fac Ext Cet Arc Hub Res Tes Res Qua Acc Com Combat Hostiles Destroyed 166 | . 11 12 . 5 42 5 . 25 22 13 3 2 . . 4 . . 1 . 2 1 . . 1 2 . 1 . 14 Melee 10 | . . . . . . . . . . . . . . . . . . . . . . . . . . . 1 . 9 Guns 112 | . 11 12 . 5 37 1 . 25 13 2 2 1 . . . . . . . . . . . 1 2 . . . . Cannons 16 | . . . . . . 4 . . 3 2 . 1 . . . . . . . 2 1 . . . . . . . 3 AOE 25 | . . . . . 5 . . . 6 9 1 . . . 4 . . . . . . . . . . . . . . Classes Destroyed 20 | 1 4 1 . 1 8 . . 1 1 2 1 . . . . . . . . . . . . . . . . . . Worker 13 | . . . . . 4 . . 2 . . . . . . . . . . . . . . . 1 1 . . . 5 Builder 6 | . . . . . 2 . . 1 1 . . . . . . . . . 1 . . . . 1 . . . . . Tunneler 2 | 2 . . . . . . . . . . . . . . . . . . . . . . . . . . . . . Hauler 13 | . 2 . . . 5 . . 2 . . . . . . . . . . . . . . . 1 . 3 . . . Recycler 7 | . . . . . 3 . . . . . . . . . . . . . . . . . . 1 . . . . 3 Minesweeper 1 | . . . . . . . . . . 1 . . . . . . . . . . . . . . . . . . . Mechanic 2 | . . . . . 1 . . . . . . . . . . . . . . . . . . . 1 . . . . Operator 13 | . 1 . . . 1 . . . . . . . . . . . . . . . . 9 . 1 . . . . 1 Watcher 6 | . . . . . 1 . . . . . . . . . . . . 1 . . . . . 2 1 . . . 1 Swarmer 51 | . 2 6 . . 18 2 . 5 14 . . . . . 4 . . . . . . . . . . . . . . Grunt 64 | . 9 5 . 4 14 2 . 13 2 9 . . . . . . . . . . . . . . . . . . 6 Brawler 7 | . . . . 1 2 . . 1 1 . 1 . . . . . . 1 . . . . . . . . . . . Duelist 4 | . . . . . 1 . . 1 . 2 . . . . . . . . . . . . . . . . . . . Protector 1 | . . . . . 1 . . . . . . . . . . . . . . . . . . . . . . . . Sentry 13 | . . . . . 6 1 . 2 1 1 . . . . . . . . . 1 . . . 1 . . . . . Demolisher 1 | . . 1 . . . . . . . . . . . . . . . . . . . . . . . . . . . Hunter 4 | . . . . . . . . . 2 . . . . . . . . . . . . . . . . . . . 2 Programmer 12 | . . . . . . . . 3 2 . 1 . . . . . . . . 1 . . . . 2 . 1 . 2 Cetus Guard 1 | . . . . . . . . . . . . . . . . . . . . . 1 . . . . . . . . M Guard 1 | . . . . . . . . . . . . . . . . . . . . . . . . . . . . . 1 Enhanced Grunt 2 | . . . . . . . . . . . . 2 . . . . . . . . . . . . . . . . . Combat Programmer 2 | . . . . . . . . . . . . . . . . . . . . . . . . . . . . . 2 Packrat 2 | . . . . . . . . . . . . . . . 2 . . . . . . . . . . . . . . Thief 1 | . . . . . . . . . . . 1 . . . . . . . . . . . . . . . . . . Master Thief 1 | . . . . . . . . . . . 1 . . . . . . . . . . . . . . . . . . Thug 2 | . . . . . . . 2 . . . . . . . . . . . . . . . . . . . . . . Mutant 1 | . . . . . . . . . . 1 . . . . . . . . . . . . . . . . . . . Best Kill Streak 9 | 1 3 3 . 3 8 2 . 9 4 9 1 1 . . 4 . . 1 1 1 1 6 . 3 2 1 1 . 5 Combat Bots Only 9 | . 2 3 . 3 6 2 . 5 4 9 1 1 . . 4 . . 1 . 1 1 . . 1 1 . 1 . 5 Max Kills in Single Turn 6 | 1 1 1 . 2 3 1 1 1 2 6 1 1 . . 3 . . 1 1 1 1 1 . 1 1 1 1 . 1 Gunslinging 1 | . . . . 1 1 . . . . . . . . . . . . . . . . . . . . . . . . Exploded 6 | . . . . . 1 . . . 2 6 1 . . . 3 . . . . . . . . . . . . . . Melee 1 | . . . . . . . . . . . . . . . . . . . . . . . . . . . 1 . 1 Uniques/NPCs Destroyed 1 | . . . . . . . . . . . . . . . . . . . . . . . . . . . . . 1 MAIN.C (-1/Command) Combat | -11 -10 -10 -10 -9 -8 -7 -7 -7 -6 -6 -6 -6 -5 -5 -5 -5 -5 -4 -4 -4 -4 -4 -4 -3 -3 -2 -2 -1 -1 -------- Run | Yrd Mat Min Exi Min Mat Fac Was Fac Fac Low Low Dat Pro Fac Upp Upp War Pro Fac Ext Cet Arc Hub Res Tes Res Qua Acc Com Hostile Shots Fired 1044 | . 35 54 . 11 183 30 . 160 111 33 7 61 . 2 16 . 3 9 . 13 7 . 10 89 28 18 30 . 134 Missed 373 | . 5 15 . 8 44 7 . 55 36 9 2 25 . 2 8 . 1 4 . 5 3 . 5 36 10 16 19 . 58 Intercepted 4 | . . . . . . . . . . . . . . . . . . . . . . . . . . . . . 4 Damage Taken 13716 | . 357 600 . 33 2124 349 155 1548 1188 506 128 1739 . . 202 . 39 71 19 259 65 . 94 1258 405 67 286 . 2224 Core 1532 | . 41 87 . . 228 15 . 30 67 70 . 406 . . . . . . . 9 14 . 16 242 109 . . . 198 Absorbed by Shields 116 | . . . . . . . . . . . . . . . . . . 21 . 32 63 . . . . . . . . Redirected to Shielding 93 | . . . . . . . . . . . . 93 . . . . . . . . . . . . . . . . . Ignored by Resistances 395 | . . . . . . . . . . . . . . . . . . . . . . . . . . . . . 395 Regen/Repaired (Parts) 1773 | . 99 . . . 110 . 104 93 . . . . . . . . 66 . . . . . . . 563 . 6 67 665 Core Remaining (%) 79 | 100 . . . 48 58 . . 93 . . . . 36 . . . . 100 . . . . 96 . 73 . 100 . 87 Volleys Fired 736 | 7 40 34 . 11 112 19 8 72 36 16 12 33 . 18 10 . 4 45 8 37 13 25 2 39 42 13 1 4 75 Largest 3 | 2 2 2 . 2 3 3 2 3 3 3 3 3 . 1 1 . 1 1 1 2 2 3 3 3 3 3 1 1 3 Hottest 231 | 40 40 46 . 46 71 145 109 106 126 128 128 128 . 90 90 . 90 90 90 147 70 105 105 105 183 190 120 50 231 Shots Fired 1436 | 14 80 67 . 22 306 42 8 204 97 37 27 50 . 18 10 . 4 45 8 39 16 67 6 83 55 27 1 4 99 Gun 1060 | 14 80 67 . 22 293 30 . 204 81 21 14 20 . . . . . . . . 6 67 6 83 32 14 . . 6 Cannon 339 | . . . . . . 12 8 . 13 12 8 26 . 18 4 . 3 45 8 39 10 . . . 23 13 1 4 92 Launcher 36 | . . . . . 13 . . . 3 4 5 4 . . 6 . 1 . . . . . . . . . . . . Special 1 | . . . . . . . . . . . . . . . . . . . . . . . . . . . . . 1 Kinetic 1109 | 14 80 67 . 22 293 34 . 202 81 21 17 33 . . . . . . . 2 16 67 6 83 32 14 . . 25 Thermal 250 | . . . . . . 8 2 2 13 11 5 13 . 18 4 . 3 45 8 37 . . . . 23 13 1 4 40 Explosive 36 | . . . . . 13 . . . 3 4 5 4 . . 6 . 1 . . . . . . . . . . . . Electromagnetic 21 | . . . . . . . 6 . . 1 . . . . . . . . . . . . . . . . . . 14 Entropic 19 | . . . . . . . . . . . . . . . . . . . . . . . . . . . . . 19 Robot Hit Streak 19 | 4 19 13 . 10 15 5 3 12 5 18 4 7 . 1 1 . 2 14 7 5 4 7 4 5 5 6 . . 11 Robot Miss Streak 11 | 2 4 2 . 1 5 5 1 7 9 1 10 11 . 3 5 . 2 2 1 3 1 3 1 3 3 2 . . 4 Penetration Max 1 | . . . . . . . . . . . . . . . . . . . . 1 . 1 . 1 . . . . . Secondary Targets 9 | . . . . 1 6 . . 1 1 . . . . . . . . . . . . . . . . . . . . Max Gunslinging Chain 1 | . . . . 1 1 . . 1 1 . . . . . . . . . . . . . . . . . . . . Shots Hit Robots 851 | 8 52 47 . 17 189 18 4 118 66 22 7 33 . 1 3 . 2 28 2 19 8 42 4 40 13 11 4 . 93 Core Hits 457 | 2 27 20 . 8 112 7 2 56 63 33 11 11 . . 6 . 1 10 1 5 1 18 1 22 6 5 1 . 28 Critical Kills 15 | . . 1 . . . 2 . . . . . . . . . . . 2 . . . 4 . 3 2 . . . 1 Critical Parts Destroyed 20 | 1 1 . . . . . . 1 1 . 1 . . . . . . . . 1 2 2 1 5 3 1 . . . Critical Strikes 45 | 1 1 1 . . . 2 . 1 1 . 1 1 . . . . . 2 . 2 3 8 1 9 5 1 . . 5 Meltdown 4 | . . . . . . . . . . . . . . . . . . 2 . . . . . . 1 . . . 1 Destroy 37 | 1 1 1 . . . 2 . 1 1 . 1 1 . . . . . . . 2 3 8 1 9 4 1 . . . Blast 1 | . . . . . . . . . . . . . . . . . . . . . . . . . . . . . 1 Sever 2 | . . . . . . . . . . . . . . . . . . . . . . . . . . . . . 2 Impale 1 | . . . . . . . . . . . . . . . . . . . . . . . . . . . . . 1 Melee Attacks 109 | . . . . . . . . . . . . . . 4 7 . . 7 . . . 4 . . . 4 22 3 58 Impact 18 | . . . . . . . . . . . . . . 4 7 . . 7 . . . . . . . . . . . Slashing 46 | . . . . . . . . . . . . . . . . . . . . . . . . . . . 4 . 42 Piercing 41 | . . . . . . . . . . . . . . . . . . . . . . . . . . 4 18 3 16 Sneak Attacks 16 | . . . . . . . . . . . . . . . 2 . . 1 . . . 4 . . . . 1 . 8 Combat Hostiles . | . . . . . . . . . . . . . . . . . . . . . . . . . . . . . . Follow-up Attacks 6 | . . . . . . . . . . . . . . . . . . . . . . . . . . . 1 . 5 Damage Inflicted 28069 | 85 588 666 . 270 4535 331 64 2552 1802 1644 963 915 . 33 672 . 59 1101 69 701 193 1101 109 1381 512 373 329 . 7021 Guns 12202 | 85 580 664 . 262 2846 163 . 2525 1093 241 138 337 . . . . . . . . 56 1101 109 1381 340 159 . . 122 Cannons 6304 | . . . . . . 168 64 . 189 225 59 363 . 33 . . 48 917 69 701 137 . . . 172 214 . . 2945 Explosions 4759 | . . . . . 1663 . . . 506 1178 766 215 . . 420 . 11 . . . . . . . . . . . . Melee 4719 | . . . . . . . . . . . . . . . 252 . . 184 . . . . . . . . 329 . 3954 Ramming 85 | . 8 2 . 8 26 . . 27 14 . . . . . . . . . . . . . . . . . . . . Kinetic 13193 | 85 580 664 . 262 2846 249 . 2512 1093 241 138 627 . . . . . . . 83 193 1101 109 1381 340 159 . . 530 Thermal 4507 | . . . . . . 82 . 13 393 217 59 73 . 33 . . 48 917 69 618 . . . . 172 214 . . 1599 Explosive 4534 | . . . . . 1663 . . . 302 1157 766 215 . . 420 . 11 . . . . . . . . . . . . Electromagnetic 332 | . . . . . . . 64 . . 29 . . . . . . . . . . . . . . . . . . 239 Impact 436 | . . . . . . . . . . . . . . . 252 . . 184 . . . . . . . . . . . Slashing 3553 | . . . . . . . . . . . . . . . . . . . . . . . . . . . 96 . 3457 Piercing 730 | . . . . . . . . . . . . . . . . . . . . . . . . . . . 233 . 497 Entropic 699 | . . . . . . . . . . . . . . . . . . . . . . . . . . . . . 699 Highest Corruption 49 | . . . . . . . 45 49 1 3 3 7 7 . . . . . . . . . . 1 2 . 1 . 14 Average Corruption 15 | . . . . . . . 23 46 1 1 3 3 7 . . . . . . . . . . 1 1 . 1 . 12 Corruption Purged 14 | . . . . . . . . . . . . . . . . . . . . . . . . . . . . . 14 Corruption Blocked . | . . . . . . . . . . . . . . . . . . . . . . . . . . . . . . Effects 208 | . . . . . . . 22 90 . 8 7 11 6 . . . . . . . . . . . 7 . . . 57 Message Errors 42 | . . . . . . . 6 16 . 2 1 4 2 . . . . . . . . . . . 2 . . . 9 Matter Fused 46 | . . . . . . . 4 18 . 3 2 3 1 . . . . . . . . . . . 2 . . . 13 Heat Flow Errors 21 | . . . . . . . 3 8 . 1 2 1 1 . . . . . . . . . . . 1 . . . 4 Energy Discharges 23 | . . . . . . . . 12 . . . 1 2 . . . . . . . . . . . 1 . . . 7 Parts Rejected 4 | . . . . . . . 1 3 . . . . . . . . . . . . . . . . . . . . . Data Loss (minor) 27 | . . . . . . . 4 10 . 1 1 1 . . . . . . . . . . . . 1 . . . 9 Data Loss (major) 15 | . . . . . . . 2 5 . . . 1 . . . . . . . . . . . . . . . . 7 Misfires 5 | . . . . . . . . 2 . 1 1 . . . . . . . . . . . . . . . . . 1 Alerts 5 | . . . . . . . . 4 . . . . . . . . . . . . . . . . . . . . 1 Misdirections 9 | . . . . . . . 1 4 . . . . . . . . . . . . . . . . . . . . 4 Weapon Failures 11 | . . . . . . . 1 8 . . . . . . . . . . . . . . . . . . . . 2 Overload Shots . | . . . . . . . . . . . . . . . . . . . . . . . . . . . . . . Overflow Damage 1239 | . . . . . 44 4 . . 40 28 2 . . 11 113 . . 6 . 17 . . . . . 14 58 . 902 Projectiles 234 | . . . . . . 4 . . . 14 . . . 11 . . . 6 . 17 . . . . . 14 . . 168 Explosions 105 | . . . . . 41 . . . 40 14 2 . . . 8 . . . . . . . . . . . . . . Melee 900 | . . . . . 3 . . . . . . . . . 105 . . . . . . . . . . . 58 . 734 Knockbacks 10 | . . . . . . . . . 1 . . 3 . . 1 . . 1 . . . . . . . . . . 4 Impact 3 | . . . . . . . . . 1 . . . . . 1 . . 1 . . . . . . . . . . . Kinetic 7 | . . . . . . . . . . . . 3 . . . . . . . . . . . . . . . . 4 Secondary . | . . . . . . . . . . . . . . . . . . . . . . . . . . . . . . Self-Inflicted Damage 433 | . . . . . 70 . . . 80 75 125 . . . 83 . . . . . . . . . . . . . . Shots 11 | . . . . . 3 . . . 2 2 2 . . . 2 . . . . . . . . . . . . . . Rammed 16 | . 5 1 . 2 3 . . 5 . . . . . . . . . . . . . . . . . . . . . Targets Rammed 19 | . 5 1 . 2 4 . . 6 1 . . . . . . . . . . . . . . . . . . . . Kicked . | . . . . . . . . . . . . . . . . . . . . . . . . . . . . . . Crushed 3 | . . . . . 1 . . 1 1 . . . . . . . . . . . . . . . . . . . . Highest Temperature 413 | . 18 10 . 7 35 3 217 236 . 108 211 59 129 136 152 . 135 300 132 297 68 297 48 243 413 32 . . 190 Average Temperature 77 | . 7 6 . 3 12 3 107 100 . 40 118 29 73 41 76 . 66 101 58 86 25 122 25 64 125 13 . . 72 Received Heat Transfer 2352 | . 186 207 . 21 891 90 9 360 45 153 . 12 . . . . 18 . . 26 4 . 18 186 . 9 27 . 90 Effects 5 | . . . . . . . . 3 . . . . . . . . . . . . . . . . 2 . . . . Shutdowns 1 | . . . . . . . . . . . . . . . . . . . . . . . . . 1 . . . . Interference 3 | . . . . . . . . 3 . . . . . . . . . . . . . . . . . . . . . Matter Decay 1 | . . . . . . . . . . . . . . . . . . . . . . . . . 1 . . . . Siege Activations 1 | . . . . . . . . . . . 1 . . . . . . . . . . . . . . . . . . Total Turns 7 | . . . . . . . . . . . 7 . . . . . . . . . . . . . . . . . . Longest Duration 7 | . . . . . . . . . . . 7 . . . . . . . . . . . . . . . . . . Robots Corrupted 5 | . . . . . . . 2 . . . . . . . 1 . . . . . . . . . . . . . 2 Combat Hostiles 2 | . . . . . . . . . . . . . . . . . . . . . . . . . . . . . 2 Parts Fried 2 | . . . . . 1 . . . . . . . . . . . . . . . . . . . . . . . 1 Impact Corruptions 8 | . . . . . 1 . . . . . . . . . 7 . . . . . . . . . . . . . . Robots Melted 4 | . . . . . . . . . . . . . . . . . . 2 . . . . . . 1 . . . 1 Combat Hostiles 2 | . . . . . . . . . . . . . . . . . . 1 . . . . . . . . . . 1 Parts Melted 2 | . . . . . . . . . 1 . . . . . . . . . . . . . . . 1 . . . . Heat Transferred 3704 | . . . . . . 111 . 37 409 296 74 148 . 37 . . 74 923 74 629 . . . . 148 185 . . 559 Parts Sabotaged . | . . . . . . . . . . . . . . . . . . . . . . . . . . . . . . Parts Stolen 4 | . . . . . . . . . . . 4 . . . . . . . . . . . . . . . . . . Parts Stripped . | . . . . . . . . . . . . . . . . . . . . . . . . . . . . . . Power Chain Reactions . | . . . . . . . . . . . . . . . . . . . . . . . . . . . . . . Latent Energy Used 59 | . . . . . . . . . . 59 . . . . . . . . . . . . . . . . . . . LE Corruption 1 | . . . . . . . . . . 1 . . . . . . . . . . . . . . . . . . . Alert | -11 -10 -10 -10 -9 -8 -7 -7 -7 -6 -6 -6 -6 -5 -5 -5 -5 -5 -4 -4 -4 -4 -4 -4 -3 -3 -2 -2 -1 -1 ------- Run | Yrd Mat Min Exi Min Mat Fac Was Fac Fac Low Low Dat Pro Fac Upp Upp War Pro Fac Ext Cet Arc Hub Res Tes Res Qua Acc Com Peak Influence 675 | 10 147 183 . 70 675 321 104 553 461 . . . . 143 . . . . 50 580 607 479 285 189 213 274 260 94 412 Initial 324 | . 6 26 . . 27 306 55 . 270 . . . . . . . . . . 24 324 162 44 157 90 41 9 43 60 Average 194 | 4 65 36 . 43 284 207 65 342 277 . . . . 40 . . . . 30 289 457 327 140 106 99 115 85 68 265 Maximum Alert Level 2 | . . . . . 2 1 . 2 2 . . . . . . . . . . 2 2 2 1 . 1 1 1 . 2 Low Security (%) 53 | 100 100 100 . 100 45 58 100 21 20 . . . . 100 . . . . 100 19 . 11 84 100 98 73 86 100 3 Level 1 31 | . . . . . 25 41 . 36 67 . . . . . . . . . . 65 12 57 15 . 1 26 13 . 77 Level 2 14 | . . . . . 28 . . 41 11 . . . . . . . . . . 15 87 31 . . . . . . 18 Level 3 . | . . . . . . . . . . . . . . . . . . . . . . . . . . . . . . Level 4 . | . . . . . . . . . . . . . . . . . . . . . . . . . . . . . . Level 5 . | . . . . . . . . . . . . . . . . . . . . . . . . . . . . . . High Security . | . . . . . . . . . . . . . . . . . . . . . . . . . . . . . . Max Security . | . . . . . . . . . . . . . . . . . . . . . . . . . . . . . . Squads Dispatched 50 | . 2 . . . 5 1 . 8 7 . . . . 2 . . . 1 . 1 . . 2 9 5 1 2 1 3 Investigation 16 | . 1 . . . . . . 2 1 . . . . 2 . . . 1 . 1 . . 2 2 3 1 . . . Extermination 9 | . . . . . . . . 3 3 . . . . . . . . . . . . . . . 1 . 1 . 1 Reinforcement 21 | . 1 . . . 2 1 . 3 3 . . . . . . . . . . . . . . 7 1 . 1 . 2 Assault 2 | . . . . . 2 . . . . . . . . . . . . . . . . . . . . . . . . Garrison 2 | . . . . . 1 . . . . . . . . . . . . . . . . . . . . . . 1 . Intercept . | . . . . . . . . . . . . . . . . . . . . . . . . . . . . . . Searches Triggered . | . . . . . . . . . . . . . . . . . . . . . . . . . . . . . . Construction Impeded 3 | . . . . . 1 . . 1 1 . . . . . . . . . . . . . . . . . . . . Haulers Reinforced 5 | . . . . . . . . 1 . . . . . . . . . . . . . . . 3 . . 1 . . Active Scanning Responses . | . . . . . . . . . . . . . . . . . . . . . . . . . . . . . . Cargo Convoy Interrupts . | . . . . . . . . . . . . . . . . . . . . . . . . . . . . . . Stealth | -11 -10 -10 -10 -9 -8 -7 -7 -7 -6 -6 -6 -6 -5 -5 -5 -5 -5 -4 -4 -4 -4 -4 -4 -3 -3 -2 -2 -1 -1 --------- Run | Yrd Mat Min Exi Min Mat Fac Was Fac Fac Low Low Dat Pro Fac Upp Upp War Pro Fac Ext Cet Arc Hub Res Tes Res Qua Acc Com Distress Signals 44 | . . . . . 8 1 . 1 . . . . . . . . . . . . 2 . . 9 . 9 1 . 13 Communications Jammed 180 | . . . . . . . . . . . . . . . . . 27 1 . 4 52 1 4 30 16 20 4 . 21 Distress Signals 164 | . . . . . . . . . . . . . . . . . 27 1 . 4 52 1 3 30 1 20 4 . 21 Times Spotted 466 | . 25 14 . 5 67 13 5 37 28 11 6 4 . 4 4 . 32 12 1 28 10 10 16 54 14 18 15 . 33 Peak Tracking Total 16 | . 5 2 . 2 10 7 3 6 5 9 4 2 . 1 4 . 15 3 1 3 5 1 16 16 4 10 8 . 5 Tactical Retreats 26 | . 1 . . . . 1 . 2 . . . . . 1 . . 1 . . 2 . . . 5 2 3 3 . 5 Traps | -11 -10 -10 -10 -9 -8 -7 -7 -7 -6 -6 -6 -6 -5 -5 -5 -5 -5 -4 -4 -4 -4 -4 -4 -3 -3 -2 -2 -1 -1 ------- Run | Yrd Mat Min Exi Min Mat Fac Was Fac Fac Low Low Dat Pro Fac Upp Upp War Pro Fac Ext Cet Arc Hub Res Tes Res Qua Acc Com Traps Triggered 15 | . 1 . . . 4 1 . 1 . . . . . . . . . . . 1 . . . . 1 . 1 . 5 Indirectly . | . . . . . . . . . . . . . . . . . . . . . . . . . . . . . . Trap Hack Attempts . | . . . . . . . . . . . . . . . . . . . . . . . . . . . . . . Triggered . | . . . . . . . . . . . . . . . . . . . . . . . . . . . . . . Disarmed . | . . . . . . . . . . . . . . . . . . . . . . . . . . . . . . Reprogrammed 1 | . . . . . . . . . . . . . . . . . . . . . . . . . . . 1 . . Reused 1 | . . . . . . . . . . . . 1 . . . . . . . . . . . . . . . . . Traps Extracted . | . . . . . . . . . . . . . . . . . . . . . . . . . . . . . . Installed 2 | . . . . . . . . . . . . 2 . . . . . . . . . . . . . . . . . Triggered 7 | . . . . . . . . . . . . . . . . . 6 . . . . . . 1 . . . . . Most Traps Carried 2 | . . . . . . . . . . 2 2 2 . . . . . . . . . . . . . . . . . Machines | -11 -10 -10 -10 -9 -8 -7 -7 -7 -6 -6 -6 -6 -5 -5 -5 -5 -5 -4 -4 -4 -4 -4 -4 -3 -3 -2 -2 -1 -1 ---------- Run | Yrd Mat Min Exi Min Mat Fac Was Fac Fac Low Low Dat Pro Fac Upp Upp War Pro Fac Ext Cet Arc Hub Res Tes Res Qua Acc Com Machines Disabled 44 | . . 2 . . 3 . . 5 2 2 . 1 . . . . . 3 . 4 . 5 . . 7 3 4 . 3 Max in Single Turn 1 | . . 1 . . 1 . . . 1 1 . 1 . . . . . 1 . 1 . 1 . . 1 1 1 . 1 Garrison Access 8 | . . . . . . 2 . . . . . . . . . . . . 1 . . . . 1 1 2 1 . . Network Hub 1 | . . . . . . . . . . . . . . . . . . . . . . . 1 . . . . . . Machines Repaired . | . . . . . . . . . . . . . . . . . . . . . . . . . . . . . . Machines Dismantled 1 | . . . . . . . . . . . . . . . . . . 1 . . . . . . . . . . . Machines Sabotaged 1 | . . . . . . . . . . . . . . . . . . . . . . . 1 . . . . . . Overloaded Fab Kills . | . . . . . . . . . . . . . . . . . . . . . . . . . . . . . . Hacking | -11 -10 -10 -10 -9 -8 -7 -7 -7 -6 -6 -6 -6 -5 -5 -5 -5 -5 -4 -4 -4 -4 -4 -4 -3 -3 -2 -2 -1 -1 --------- Run | Yrd Mat Min Exi Min Mat Fac Was Fac Fac Low Low Dat Pro Fac Upp Upp War Pro Fac Ext Cet Arc Hub Res Tes Res Qua Acc Com Machines Accessed 120 | . 10 . 2 . 5 5 . 4 6 . . 3 . 13 . . 5 2 3 15 1 . 3 7 12 4 7 4 9 Terminals 78 | . 7 . . . 3 1 . 2 6 . . . . 10 . . . . 1 14 1 . 3 4 7 2 6 4 7 Fabricators 8 | . . . . . . 1 . 1 . . . . . 2 . . . 1 . . . . . 1 2 . . . . Repair Stations 4 | . 1 . . . 1 . . . . . . . . . . . . . . . . . . . 1 . . . 1 Recycling Units 10 | . 2 . . . 1 1 . 1 . . . . . . . . . 1 1 1 . . . 1 . . . . 1 Scanalyzers 2 | . . . . . . . . . . . . . . 1 . . . . . . . . . . 1 . . . . Garrison Access 8 | . . . . . . 2 . . . . . . . . . . . . 1 . . . . 1 1 2 1 . . Total Hacks 321 | . 35 . 2 . 10 10 . 12 16 . . 18 . 29 . . 11 5 3 31 2 . 7 29 34 11 20 10 26 Successful 214 | . 21 . 2 . 6 7 . 5 6 . . 18 . 16 . . 11 2 2 19 1 . 6 23 28 7 12 8 14 Failed 106 | . 14 . . . 4 3 . 7 10 . . . . 13 . . . 3 1 12 1 . 1 5 6 4 8 2 12 Catastrophic 13 | . 1 . . . 1 2 . 1 3 . . . . 3 . . . . . . . . . . 1 . . . 1 Database Lockouts 1 | . . . . . . . . . . . . . . . . . . . . . . . . 1 . . . . . Manual 101 | . 16 . 1 . 4 2 . 4 8 . . . . 7 . . 1 2 . 11 1 . 7 10 11 6 3 . 7 Terminals 224 | . 30 . . . 7 3 . 5 16 . . . . 21 . . . . 1 28 2 . 7 25 22 9 17 10 21 Fabricators 20 | . . . . . . 2 . 3 . . . . . 6 . . . 3 . . . . . 2 4 . . . . Repair Stations 9 | . 2 . . . 2 . . . . . . . . . . . . . . . . . . . 3 . . . 2 Recycling Units 20 | . 3 . . . 1 2 . 4 . . . . . . . . . 2 1 3 . . . 1 . . . . 3 Scanalyzers 6 | . . . . . . . . . . . . . . 2 . . . . . . . . . . 4 . . . . Garrison Access 11 | . . . . . . 3 . . . . . . . . . . . . 1 . . . . 1 1 2 3 . . Terminal Hacks 142 | . 11 . 2 . 2 3 . 1 6 . . 18 . 8 . . 11 . 1 13 1 . 3 17 13 5 10 8 9 Record 17 | . . . 1 . . . . . . . . 2 . . . . 10 . . . . . . 1 . . . . 3 Part Schematic 16 | . . . . . . 1 . . . . . 8 . . . . . . . 1 . . 1 2 2 1 . . . Robot Schematic 5 | . . . . . . . . . . . . 5 . . . . . . . . . . . . . . . . . Robot Analysis 4 | . 2 . . . . . . . . . . . . . . . . . . 2 . . . . . . . . . Prototype ID Bank 11 | . 2 . . . . 1 . . . . . 3 . 1 . . . . . . . . . 2 . 1 . 1 . Open Door 16 | . . . . . . . . . . . . . . . . . 1 . 1 9 1 . . . . . . 3 1 Open DSF 1 | . . . . . . . . 1 . . . . . . . . . . . . . . . . . . . . . Level Access Points 2 | . . . . . . . . . . . . . . . . . . . . . . . 1 . . . 1 . . Branch Access Points 5 | . . . . . . 1 . . 1 . . . . 1 . . . . . . . . . 1 . 1 . . . Emergency Access Points 6 | . 2 . . . 1 . . . . . . . . . . . . . . . . . . . 1 . 1 . 1 Machine Index 4 | . . . . . . . . . . . . . . 1 . . . . . . . . . 1 1 1 . . . Terminal Index 3 | . . . . . . . . . 1 . . . . . . . . . . . . . . 1 . . 1 . . Fabricator Index 2 | . . . . . . . . . . . . . . . . . . . . . . . . 1 . 1 . . . Alert Level 4 | . . . . . . . . . . . . . . . . . . . . . . . 1 1 . . . 1 1 Unreport Threat 10 | . . . . . . . . . 2 . . . . . . . . . . 1 . . . 3 1 . 3 . . Locate Traps 6 | . 2 . . . . . . . . . . . . 2 . . . . . . . . . . . . . 1 1 Disarm Traps 1 | . . . . . . . . . . . . . . . . . . . . . . . . . . . 1 . . Reprogram Traps 1 | . . . . . . . . . . . . . . . . . . . . . . . . . . . 1 . . Maintenance Status 2 | . 1 . . . 1 . . . . . . . . . . . . . . . . . . . . . . . . Transport Status 1 | . 1 . . . . . . . . . . . . . . . . . . . . . . . . . . . . Recall Investigation 2 | . . . . . . . . . . . . . . . . . . . . . . . . . 2 . . . . Recall Extermination 1 | . . . . . . . . . 1 . . . . . . . . . . . . . . . . . . . . Hauler Manifests 1 | . . . . . . . . . . . . . . . . . . . . . . . . 1 . . . . . Registered Components 5 | . . . . . . . . . . . . . . 1 . . . . . . . . . 1 1 . 1 . 1 Registered Prototypes 2 | . . . . . . . . . . . . . . . . . . . . . . . . . 1 . . 1 . Zone Layout 12 | . 1 . . . . . . . 1 . . . . 2 . . . . . . . . . 2 4 . 1 1 . Derelict Proto ID Bank 1 | . . . 1 . . . . . . . . . . . . . . . . . . . . . . . . . . Disengage Seal 1 | . . . . . . . . . . . . . . . . . . . . . . . . . . . . . 1 Fabricator Hacks 16 | . . . . . . 1 . 3 . . . . . 4 . . . 2 . . . . . 2 4 . . . . Network Status 3 | . . . . . . 1 . 1 . . . . . 1 . . . . . . . . . . . . . . . Load Schematic 7 | . . . . . . . . 1 . . . . . 2 . . . 1 . . . . . 1 2 . . . . Build 6 | . . . . . . . . 1 . . . . . 1 . . . 1 . . . . . 1 2 . . . . Repair Station Hacks 8 | . 2 . . . 2 . . . . . . . . . . . . . . . . . . . 2 . . . 2 Scan Component 4 | . 1 . . . 1 . . . . . . . . . . . . . . . . . . . 1 . . . 1 Repair 4 | . 1 . . . 1 . . . . . . . . . . . . . . . . . . . 1 . . . 1 Recycling Unit Hacks 6 | . . . . . 1 . . 1 . . . . . . . . . . . 1 . . . 1 . . . . 2 Retrieve Components 6 | . . . . . 1 . . 1 . . . . . . . . . . . 1 . . . 1 . . . . 2 Scanalyzer 6 | . . . . . . . . . . . . . . 2 . . . . . . . . . . 4 . . . . Insert Component 5 | . . . . . . . . . . . . . . 1 . . . . . . . . . . 4 . . . . Analyze 1 | . . . . . . . . . . . . . . 1 . . . . . . . . . . . . . . . Garrison Access Hacks 8 | . . . . . . 2 . . . . . . . . . . . . 1 . . . . 1 1 2 1 . . Seal Access 8 | . . . . . . 2 . . . . . . . . . . . . 1 . . . . 1 1 2 1 . . Unauthorized Hacks 28 | . 8 . . . 1 1 . . . . . . . 2 . . . . . 5 . . 3 2 4 . 1 . 1 Terminals 23 | . 8 . . . 1 . . . . . . . . 1 . . . . . 3 . . 3 2 3 . 1 . 1 Track 2 | . . . . . . . . . . . . . . . . . . . . . . . 1 . . . 1 . . Assimilate 2 | . . . . . . . . . . . . . . . . . . . . 1 . . . . 1 . . . . Botnet 8 | . 1 . . . 1 . . . . . . . . 1 . . . . . 1 . . . 1 2 . . . 1 Disrupt 1 | . . . . . . . . . . . . . . . . . . . . . . . . 1 . . . . . Operators 2 | . 1 . . . . . . . . . . . . . . . . . . 1 . . . . . . . . . Skim 6 | . 6 . . . . . . . . . . . . . . . . . . . . . . . . . . . . Sabotage 2 | . . . . . . . . . . . . . . . . . . . . . . . 2 . . . . . . Fabricators 2 | . . . . . . 1 . . . . . . . 1 . . . . . . . . . . . . . . . Haulers 1 | . . . . . . 1 . . . . . . . . . . . . . . . . . . . . . . . Recompile 1 | . . . . . . . . . . . . . . 1 . . . . . . . . . . . . . . . Repair Stations 1 | . . . . . . . . . . . . . . . . . . . . . . . . . 1 . . . . Patch 1 | . . . . . . . . . . . . . . . . . . . . . . . . . 1 . . . . Recycling Units 2 | . . . . . . . . . . . . . . . . . . . . 2 . . . . . . . . . Recyclers 1 | . . . . . . . . . . . . . . . . . . . . 1 . . . . . . . . . Mask 1 | . . . . . . . . . . . . . . . . . . . . 1 . . . . . . . . . Scanalyzers . | . . . . . . . . . . . . . . . . . . . . . . . . . . . . . . Garrison Access . | . . . . . . . . . . . . . . . . . . . . . . . . . . . . . . Data Cores Recovered 2 | . . . . . 1 . . . . . . . . . . . . . . . . . . 1 . . . . . Used . | . . . . . . . . . . . . . . . . . . . . . . . . . . . . . . Hacking Detections 83 | . 10 . . . 3 3 . 3 6 . . . . 12 . . . 2 1 9 1 . 2 6 9 2 5 1 8 Full Trace Events 11 | . 1 . . . . . . 2 1 . . . . 1 . . . 1 . 1 . . . 1 2 1 . . . Feedback Events 1 | . . . . . . . . . 1 . . . . . . . . . . . . . . . . . . . . Corruption 1 | . . . . . . . . . 1 . . . . . . . . . . . . . . . . . . . . Feedback Blocked . | . . . . . . . . . . . . . . . . . . . . . . . . . . . . . . Robot Schematics Acquired 5 | . . . . . . . . . . . . 5 . . . . . . . . . . . . . . . . . Robots Built . | . . . . . . . . . . . . . . . . . . . . . . . . . . . . . . Authchips . | . . . . . . . . . . . . . . . . . . . . . . . . . . . . . . Time . | . . . . . . . . . . . . . . . . . . . . . . . . . . . . . . Total Robot Build Rating . | . . . . . . . . . . . . . . . . . . . . . . . . . . . . . . Part Schematics Acquired 17 | . . . . . . 1 . . . . . 8 . 1 . . . . . 1 . . 1 2 2 1 . . . Parts Built 8 | . . . . . . . . 1 . . . . . 2 . . . 1 . . . . . 2 2 . . . . Authchips 1 | . . . . . . . . . . . . . . 1 . . . . . . . . . . . . . . . Time 457 | . . . . . . . . 47 . . . . . 84 . . . 84 . . . . . 69 173 . . . . Total Part Build Rating 53 | . . . . . . . . 5 . . . . . 8 . . . 6 . . . . . 18 16 . . . . Parts Repaired 4 | . 1 . . . 1 . . . . . . . . . . . . . . . . . . . 1 . . . 1 Time 142 | . 26 . . . 26 . . . . . . . . . . . . . . . . . . . 54 . . . 36 Parts Recycled . | . . . . . . . . . . . . . . . . . . . . . . . . . . . . . . Recycled Matter . | . . . . . . . . . . . . . . . . . . . . . . . . . . . . . . Retrieved Matter . | . . . . . . . . . . . . . . . . . . . . . . . . . . . . . . Retrieved Components 35 | . . . . . 10 . . 2 . . . . . . . . . . . 10 . . . . . . . . 13 Parts Scanalyzed 1 | . . . . . . . . . . . . . . 1 . . . . . . . . . . . . . . . Part Schematics Acquired 1 | . . . . . . . . . . . . . . 1 . . . . . . . . . . . . . . . Parts Damaged . | . . . . . . . . . . . . . . . . . . . . . . . . . . . . . . Bothacking | -11 -10 -10 -10 -9 -8 -7 -7 -7 -6 -6 -6 -6 -5 -5 -5 -5 -5 -4 -4 -4 -4 -4 -4 -3 -3 -2 -2 -1 -1 ------------ Run | Yrd Mat Min Exi Min Mat Fac Was Fac Fac Low Low Dat Pro Fac Upp Upp War Pro Fac Ext Cet Arc Hub Res Tes Res Qua Acc Com Used RIF Installer . | . . . . . . . . . . . . . . . . . . . . . . . . . . . . . . Robots Hacked 3 | . . . . . . . . . . . . . . . . . . . . . . 2 . . . . . . 1 Non-combat 2 | . . . . . . . . . . . . . . . . . . . . . . 2 . . . . . . . Combat . | . . . . . . . . . . . . . . . . . . . . . . . . . . . . . . Robot Hacks Applied 4 | . . . . . . . . . . . . . . . . . . . . . . 4 . . . . . . . parse_system 2 | . . . . . . . . . . . . . . . . . . . . . . 2 . . . . . . . no_distress 1 | . . . . . . . . . . . . . . . . . . . . . . 1 . . . . . . . check_alert 1 | . . . . . . . . . . . . . . . . . . . . . . 1 . . . . . . . Manual 1 | . . . . . . . . . . . . . . . . . . . . . . . . . . . . . 1 Relay Couplers Released . | . . . . . . . . . . . . . . . . . . . . . . . . . . . . . . Fabnet Peak Effective % . | . . . . . . . . . . . . . . . . . . . . . . . . . . . . . . Robots Rewired 38 | . . . . . . . . . . 2 . . . . . . 5 11 . 20 . . . . . . . . . Allies Hacked . | . . . . . . . . . . . . . . . . . . . . . . . . . . . . . . Hacks Repelled . | . . . . . . . . . . . . . . . . . . . . . . . . . . . . . . Allies | -11 -10 -10 -10 -9 -8 -7 -7 -7 -6 -6 -6 -6 -5 -5 -5 -5 -5 -4 -4 -4 -4 -4 -4 -3 -3 -2 -2 -1 -1 -------- Run | Yrd Mat Min Exi Min Mat Fac Was Fac Fac Low Low Dat Pro Fac Upp Upp War Pro Fac Ext Cet Arc Hub Res Tes Res Qua Acc Com Total Allies 78 | . . 3 . . . . 19 . . 2 . . . . . . 5 11 . 32 5 . . . 1 . . . . Largest Group 22 | . . 3 . . . . 19 3 . 2 2 1 . . . . 5 13 6 22 22 18 14 . 1 . . . . Highest-Rated Group 1230 | . . 40 . . . . 465 97 . 49 49 26 . . . . 299 416 286 1021 1230 1173 840 . 45 . . . . Highest-Rated Ally 159 | . . 16 . . . . 35 35 . 29 29 26 . . . . 68 68 65 159 159 159 96 . 45 . . . . Total Orders 35 | . . . . . . . . . . . . . . . . . 2 8 . 23 . 2 . . . . . . . STAY 6 | . . . . . . . . . . . . . . . . . 1 3 . 1 . 1 . . . . . . . ROAM 2 | . . . . . . . . . . . . . . . . . . 1 . 1 . . . . . . . . . FOLLOW 8 | . . . . . . . . . . . . . . . . . 1 4 . 2 . 1 . . . . . . . AID 1 | . . . . . . . . . . . . . . . . . . . . 1 . . . . . . . . . RETURN 18 | . . . . . . . . . . . . . . . . . . . . 18 . . . . . . . . . Ally Attacks 588 | . . 6 . . . . 110 19 . . 20 8 . . . . 18 40 10 235 79 26 17 . . . . . . Total Damage 18889 | . . 72 . . . . 3945 1709 . . 182 74 . . . . 1333 1552 374 5952 2146 807 743 . . . . . . Kills 89 | . . . . . . . 13 11 . . . . . . . . 4 8 1 31 13 5 3 . . . . . . Allies Corrupted 9 | . . . . . . . 9 . . . . . . . . . . . . . . . . . . . . . . Allies Melted . | . . . . . . . . . . . . . . . . . . . . . . . . . . . . . . Intel | -11 -10 -10 -10 -9 -8 -7 -7 -7 -6 -6 -6 -6 -5 -5 -5 -5 -5 -4 -4 -4 -4 -4 -4 -3 -3 -2 -2 -1 -1 ------- Run | Yrd Mat Min Exi Min Mat Fac Was Fac Fac Low Low Dat Pro Fac Upp Upp War Pro Fac Ext Cet Arc Hub Res Tes Res Qua Acc Com Robot Analysis Total 4 | . 2 . . . . . . . . . . . . . . . . . . 2 . . . . . . . . . Derelict Logs Recovered 10 | . . 1 . . . . . . . . 2 . 1 . 2 1 . 3 . . . . . . . . . . . Drone Launches 25 | . . . . . . . . . . . . . . . . . . . . 25 . . . . . . . . . Drone Recoveries 23 | . . . . . . . . . . . . . . . . . . . . 23 . . . . . . . . . Exploration | -11 -10 -10 -10 -9 -8 -7 -7 -7 -6 -6 -6 -6 -5 -5 -5 -5 -5 -4 -4 -4 -4 -4 -4 -3 -3 -2 -2 -1 -1 ------------- Run | Yrd Mat Min Exi Min Mat Fac Was Fac Fac Low Low Dat Pro Fac Upp Upp War Pro Fac Ext Cet Arc Hub Res Tes Res Qua Acc Com Turns Passed 25540 | 70 1658 1413 584 750 2944 1103 465 1434 1278 858 518 438 370 484 319 205 824 1630 297 1098 410 895 92 543 787 992 328 115 2638 Spaces Moved 21060 | 18 847 646 276 295 958 513 233 545 705 485 266 158 317 928 713 529 937 1780 204 934 254 420 292 1122 1162 1761 562 211 2989 Core 62 | . . . . . . . . . . . . . 1 61 . . . . . . . . . . . . . . . Treads 5911 | 18 847 646 276 295 958 513 233 545 705 485 266 124 . . . . . . . . . . . . . . . . . Legs . | . . . . . . . . . . . . . . . . . . . . . . . . . . . . . . Wheels 350 | . . . . . . . . . . . . 34 316 . . . . . . . . . . . . . . . . Hover 6662 | . . . . . . . . . . . . . . . . . . . . . . . . . 1139 1761 562 211 2989 Flight 8075 | . . . . . . . . . . . . . . 867 713 529 937 1780 204 934 254 420 292 1122 23 . . . . Fastest Speed 22 | 160 160 160 160 240 160 163 163 163 163 163 163 115 115 37 37 37 30 30 28 28 28 28 28 22 29 43 43 43 37 Average Speed 85 | 160 160 201 210 240 237 200 180 204 163 163 179 161 117 41 37 37 34 57 28 28 39 28 28 28 48 43 43 43 45 Slowest Speed 750 | 160 240 240 240 240 240 243 243 246 165 163 243 245 750 120 117 37 109 249 103 30 103 28 28 103 49 107 43 43 137 Overloaded Moves 39 | . . . . . . . . . . . . . . . . . . . . . . . . 34 . . . . 5 Propulsion Burnouts . | . . . . . . . . . . . . . . . . . . . . . . . . . . . . . . Robots Hopped 62 | . . . . . . . . . . . . . . 5 . 1 1 . 2 11 . 1 6 35 . . . . . Cave-ins Triggered . | . . . . . . . . . . . . . . . . . . . . . . . . . . . . . . Exploration Rate (%) 58 | 3 97 97 61 62 66 18 94 23 31 67 50 80 49 23 65 75 91 85 7 86 74 98 32 33 89 42 72 8 72 Regions Visited 29 Branch Regions 18 Pre-discovered Areas 8 | . . 2 1 . . . . . . . . 1 . . 1 . 1 2 . . . . . . . . . . . Known Exits Taken 17 | . . . . . . . . . 1 . . . 1 1 1 1 1 1 1 1 1 1 1 1 1 1 1 1 . Unknown Exits Taken 10 | 1 1 1 1 1 1 . . 1 . 1 1 1 . . . . . . . . . . . . . . . . . Scrap Searched 15 | . . 1 . 2 . . . . . 1 1 . 1 . 2 4 . 3 . . . . . . . . . . . Spaces Dug 113 | . . . . . 4 1 1 . 8 22 . . . 14 8 . . 5 5 7 . . . 2 9 6 7 3 11 Terrain Destroyed 506 | . . . . . 56 2 1 6 65 34 82 7 . 21 101 . 6 6 6 15 8 25 . 3 16 10 7 7 22 Melee 29 | . . . . . . . . . . . . . . 4 5 . . 2 . . . . . . . 3 7 3 5 Projectile 143 | . . . . . . 2 1 6 5 3 3 . . 17 4 . . 4 6 15 8 25 . 1 15 7 . 4 17 AOE 331 | . . . . . 56 . . . 60 31 79 7 . . 92 . 6 . . . . . . . . . . . . Terrain Rammed . | . . . . . . . . . . . . . . . . . . . . . . . . . . . . . . Walls Destroyed . | . . . . . . . . . . . . . . . . . . . . . . . . . . . . . . Machines Disabled . | . . . . . . . . . . . . . . . . . . . . . . . . . . . . . . Actions | -11 -10 -10 -10 -9 -8 -7 -7 -7 -6 -6 -6 -6 -5 -5 -5 -5 -5 -4 -4 -4 -4 -4 -4 -3 -3 -2 -2 -1 -1 --------- Run | Yrd Mat Min Exi Min Mat Fac Was Fac Fac Low Low Dat Pro Fac Upp Upp War Pro Fac Ext Cet Arc Hub Res Tes Res Qua Acc Com Total 27237 | 44 1081 695 280 314 1401 548 272 716 757 523 284 296 324 1001 742 537 1431 2322 434 1718 548 1143 291 1248 1334 1967 622 225 4139 Wait 4333 | 13 150 5 . . 259 2 7 54 . 1 . 84 . 3 . . 427 402 208 642 266 674 . 73 58 140 22 . 843 Move 20919 | 17 846 645 275 294 957 513 232 544 704 484 265 157 316 917 712 526 934 1779 199 912 253 417 281 1060 1161 1760 561 210 2988 Hop 50 | . . . . . . . . . . . . . . 5 . 1 1 . 2 10 . 1 4 26 . . . . . Pick Up 177 | 2 18 4 2 5 13 4 9 12 5 7 2 1 3 10 1 2 4 11 1 . 2 1 . 10 20 8 5 2 13 Fast Attach 157 | 1 3 . . . 15 3 2 7 . . . 1 . 16 4 3 11 5 5 4 6 9 2 8 8 12 2 1 29 Attach 111 | . 1 4 1 1 11 5 . 10 6 5 3 8 1 6 1 1 5 2 1 . 1 . . 7 9 2 . 1 19 Detach 46 | . . . . 1 1 1 2 1 2 1 . 4 1 1 1 . 3 . 2 . . 1 . 11 3 . . . 10 Swap 88 | 4 4 . 1 . 12 1 3 5 . 4 2 3 . . 1 . 2 1 . 1 . 1 . 5 11 8 2 2 15 Drop 238 | . 14 2 1 . 17 . 9 5 3 1 . 3 3 21 5 4 20 5 8 3 7 10 2 9 22 20 7 2 35 Fire 736 | 7 40 34 . 11 112 19 8 72 36 16 12 33 . 18 10 . 4 45 8 37 13 25 2 39 42 13 1 4 75 Melee 94 | . . . . . . . . . . . . . . 4 7 . . 7 . . . 4 . . . 4 16 3 49 Ram . | . . . . . . . . . . . . . . . . . . . . . . . . . . . . . . Kick . | . . . . . . . . . . . . . . . . . . . . . . . . . . . . . . Crush 19 | . 5 1 . 2 4 . . 6 1 . . . . . . . . . . . . . . . . . . . . Escape Stasis 76 | . . . . . . . . . . . . . . . . . . . . 18 . . . . . . 6 . 52 Rewire 182 | . . . . . . . . . . 4 . . . . . . 19 57 . 91 . . . . . . . . 11 Trap 2 | . . . . . . . . . . . . 2 . . . . . . . . . . . . . . . . . Miscellaneous 9 | . . . . . . . . . . . . . . . . . 1 8 . . . . . . . . . . . Route ------- -11/Scrapyard -10/Materials (discovered 5 exits: [*Mat x3] / [*Min] / Sub) -10/Mines (discovered 3 exits: [*Mat x2] / *Exi) -10/Exiles -9/Mines -8/Materials -7/Factory (discovered 2 exits: Low x2) -7/Waste -7/Factory -6/Factory (discovered 2 exits: *Low x2) -6/Lower Caves -6/Lower Caves -6/Data Miner -5/Proximity Caves -5/Factory (discovered 3 exits: *Fac / *Upp x2) -5/Upper Caves -5/Upper Caves (discovered 2 exits: *Fac / *War) -5/Warlord -4/Proximity Caves -4/Factory (discovered 3 exits: Upp x2 / *Ext) -4/Extension (discovered 2 exits: *Res / *Cet) -4/Cetus (discovered 2 exits: *Res / *Arc) -4/Archives (discovered 3 exits: *Res / *Hub x2) -4/Hub_04(d) (discovered 4 exits: *Res x4) -3/Research (discovered 3 exits: Arm / *Tes x2) -3/Testing -2/Research (discovered 3 exits: *Acc / *Qua x2) -2/Quarantine -1/Access -1/Command (discovered 2 exits: [*Sur x2]) 0b11 Command History --------- Turn | Location | Event 7 | -11/Scrapyard | Discovered new exit (range 3) 71 | -11/Scrapyard | Entered Materials 311 | -10/Materials | Build established: Mutant 681 | -10/Materials | Discovered new exit (range 13) 874 | -10/Materials | Discovered new exit (range 16) 1131 | -10/Materials | Learned Storage stockpile data 1187 | -10/Materials | Learned location of 1 exit from Storage 1187 | -10/Materials | Discovered new exit (range 16) 1231 | -10/Materials | Loaded intel: 11 trap records 1267 | -10/Materials | Learned location of 1 exit from Storage 1293 | -10/Materials | Learned 4 Recycling zone layouts 1307 | -10/Materials | Identified exit to Subcaves 1364 | -10/Materials | Learned Storage emergency access door positions 1405 | -10/Materials | Learned Storage stockpile data 1610 | -10/Materials | Repaired Lgt. Treads 1629 | -10/Materials | Discovered new exit (range 5) 1729 | -10/Materials | Entered Mines 1789 | -10/Mines | Assembled infested the area 1794 | -10/Mines | Assisted by a Guerilla fighting off Assembled 1814 | -10/Mines | Assisted by bots powering up and referring to "LRC-V3" 2455 | -10/Mines | Found a hidden stash of uninstalled traps 2536 | -10/Mines | Lost 3 parts (1p1n1w) 2542 | -10/Mines | Discovered new exit (range 5) 2610 | -10/Mines | Learned location of Storage (-9) 2626 | -10/Mines | Discovered new exit (range 4) 2970 | -10/Mines | Core integrity fell below 50% 3130 | -10/Mines | Deemed a non-threat by the Exiles lab entrance 3133 | -10/Mines | Discovered new exit (range 5) 3142 | -10/Mines | Entered Exiles 3202 | -10/Exiles | Met 8R-AWN 3241 | -10/Exiles | Met EX-HEX 3320 | -10/Exiles | Met EX-BIN 3358 | -10/Exiles | Aligned with FarCom system 3361 | -10/Exiles | Given EX-Vault access code 3416 | -10/Exiles | Opened EX-Vault 3430 | -10/Exiles | Found YOLO Cannon 3439 | -10/Exiles | Found Latent Energy Streamer 3488 | -10/Exiles | Warned to stay clear of 0b10 Research branches 3536 | -10/Exiles | Met EX-DEC 3587 | -10/Exiles | Learned location of Zion (-7) 3707 | -10/Exiles | Discovered new exit (range 10) 3726 | -10/Exiles | Stole two prototypes: Latent Energy Streamer, YOLO Cannon 3726 | -10/Exiles | Entered Mines 3813 | -9/Mines | Received a Rocket Launcher from a helpful Derelict 4044 | -9/Mines | A weapon hastily lodged in a ceiling crevice suddenly fell to the ground 4330 | -9/Mines | Discovered new exit (range 6) 4476 | -9/Mines | Entered Materials 4476 | -8/Materials | Evolved 4 slots: Propulsion x1, Utility x2, Weapon x1 4755 | -8/Materials | Repaired Lgt. Treads 4856 | -8/Materials | Build established: Tank 5346 | -8/Materials | Discovered new exit (range 10) 6324 | -8/Materials | Garrison activated, responded to threat 7174 | -8/Materials | Build established: Scavenger-Tank 7276 | -8/Materials | First assault squad dispatched 7384 | -8/Materials | Lost 9 parts (2n4u3w) 7420 | -8/Materials | Entered Factory 7420 | -7/Factory | Evolved 2 slots: Utility x2 7422 | -7/Factory | FarCom data flow suspended 7717 | -7/Factory | Build established: Scavenger-Gunner 8457 | -7/Factory | Identified exit to Lower Caves 8498 | -7/Factory | Build established: Mutant 8523 | -7/Factory | Sucked down chute 8523 | -7/Factory | Entered Waste 8538 | -7/Waste | EMP discharged 8590 | -7/Waste | Met Warlord forces unprepared to attack 8638 | -7/Waste | EMP discharged 8638 | -7/Waste | System corruption reached 10% 8711 | -7/Waste | Spotted C-40 Crusher 8712 | -7/Waste | Allies destroyed C-40 Crusher 8738 | -7/Waste | EMP discharged 8738 | -7/Waste | Spotted C-40 Crusher 8747 | -7/Waste | Allies destroyed C-40 Crusher 8748 | -7/Waste | Spotted C-40 Crusher 8750 | -7/Waste | Spotted C-40 Crusher 8752 | -7/Waste | Allies destroyed C-40 Crusher 8752 | -7/Waste | Spotted C-40 Crusher 8758 | -7/Waste | Allies destroyed C-40 Crusher 8763 | -7/Waste | Allies destroyed C-40 Crusher 8788 | -7/Waste | Lost 4 allies 8809 | -7/Waste | Spotted C-40 Crusher 8812 | -7/Waste | Allies destroyed C-40 Crusher 8838 | -7/Waste | EMP discharged 8838 | -7/Waste | System corruption reached 30% 8870 | -7/Waste | Lost 5 allies 8901 | -7/Waste | Discovered new exit (range 15) 8938 | -7/Waste | EMP discharged 8972 | -7/Waste | Lost 7 allies 8988 | -7/Waste | Entered Factory 8988 | -7/Factory | Accompanied by 3 allies 9343 | -7/Factory | Build established: Gunner 9346 | -7/Factory | Fabricated Imp. Hacking Suite (x1) 9430 | -7/Factory | Lost 3 allies 9684 | -7/Factory | Build established: Tank 9898 | -7/Factory | Lost 3 parts (2n1w) 10285 | -7/Factory | Build established: Hacker-Gunner 10352 | -7/Factory | Discovered new exit (range 15) 10422 | -7/Factory | Entered another Factory area 10422 | -6/Factory | Evolved 2 slots: Propulsion x1, Utility x1 11152 | -6/Factory | Spotted B-75 Beast 11178 | -6/Factory | Identified exit to Lower Caves 11700 | -6/Factory | Entered Lower Caves 11759 | -6/Lower Caves | Build established: Hacker-Mutant 12120 | -6/Lower Caves | Build established: Tank 12303 | -6/Lower Caves | Attracted the attention of an 0b10 outpost 12338 | -6/Lower Caves | Destroyed 9 combat bots 12434 | -6/Lower Caves | Discovered new exit (range 4) 12485 | -6/Lower Caves | Attacked by a delusional Derelict stockpiling parts 12558 | -6/Lower Caves | Entered another Lower Caves area 12558 | -6/Lower Caves | Accompanied by 2 allies 12882 | -6/Lower Caves | Learned Factory terminal intel 12914 | -6/Lower Caves | Spotted DE-384(f) 12916 | -6/Lower Caves | Encountered a Master Thief 12916 | -6/Lower Caves | Spotted AF-93H(f) 12917 | -6/Lower Caves | Encountered a Master Thief 12917 | -6/Lower Caves | Spotted PQ-K4H(f) 12917 | -6/Lower Caves | Spotted K2-7G0(f) 12918 | -6/Lower Caves | Encountered a Master Thief 12918 | -6/Lower Caves | Encountered a Master Thief 12918 | -6/Lower Caves | YOLO Cannon stolen by Master Thief 12919 | -6/Lower Caves | Latent Energy Streamer stolen by Master Thief 12925 | -6/Lower Caves | Lgt. Treads stolen by Master Thief 12926 | -6/Lower Caves | Destroyed PQ-K4H(f) 12929 | -6/Lower Caves | Hvy. Treads stolen by Master Thief 12989 | -6/Lower Caves | Learned Factory terminal intel 13054 | -6/Lower Caves | Discovered new exit (range 10) 13076 | -6/Lower Caves | Entered Data Miner 13076 | -6/Data Miner | Accompanied by 1 ally 13078 | -6/Data Miner | Discovered new exit (range 6) 13109 | -6/Data Miner | Met Data Miner 13146 | -6/Data Miner | Learned location of Section 7 (-2) 13146 | -6/Data Miner | Acquired the access code to Warlord's prototype stash 13173 | -6/Data Miner | Received God Mode back door access code from Data Miner 13255 | -6/Data Miner | Data Conduit disabled 13476 | -6/Data Miner | Core integrity fell below 50% 13514 | -6/Data Miner | Entered Proximity Caves 13522 | -5/Proximity Caves | Lost 12 parts (1p2n5u4w) 13703 | -5/Proximity Caves | Identified exit to Factory 13744 | -5/Proximity Caves | Build established: Mutant 13884 | -5/Proximity Caves | Entered Factory 13884 | -5/Factory | Evolved 2 slots: Power x1, Utility x1 13885 | -5/Factory | Loaded intel: 26 terminal locations 13926 | -5/Factory | Discovered new exit (range 19) 14116 | -5/Factory | Found Prototype Launcher 14116 | -5/Factory | Identified Tesla Bomb Launcher 14185 | -5/Factory | Identified exit to Upper Caves 14223 | -5/Factory | Discovered new exit (range 14) 14227 | -5/Factory | Identified exit to Factory 14233 | -5/Factory | Fabricated Arm. Huge Wheel? 14368 | -5/Factory | Entered Upper Caves 14409 | -5/Upper Caves | Encountered a Warlord checkpoint 14415 | -5/Upper Caves | Learned 12 Factory zone layouts 14482 | -5/Upper Caves | Build established: Hacker-Mutant 14682 | -5/Upper Caves | Discovered new exit (range 8) 14684 | -5/Upper Caves | Identified exit to Upper Caves 14687 | -5/Upper Caves | Entered another Upper Caves area 14712 | -5/Upper Caves | Discovered exit to Factory (range 8) 14822 | -5/Upper Caves | Learned Factory stockpile data 14889 | -5/Upper Caves | Discovered new exit (range 11) 14892 | -5/Upper Caves | Identified exit to Warlord 14892 | -5/Upper Caves | Entered Warlord 14991 | -5/Warlord | Learned location of Testing (-3) 14991 | -5/Warlord | Learned Quarantine emergency access door positions 14991 | -5/Warlord | Learned 4 Access zone layouts 14991 | -5/Warlord | Learned 4 Quarantine zone layouts 14991 | -5/Warlord | Learned Factory terminal intel 14991 | -5/Warlord | Learned Research garrison access intel 15097 | -5/Warlord | Met Warlord 15100 | -5/Warlord | Opened Warlord's prototype stash 15101 | -5/Warlord | Warlord's base attacked by MAIN.C 15102 | -5/Warlord | Found Prototype Device 15102 | -5/Warlord | Identified Thermal Barrier 15107 | -5/Warlord | Found Prototype Processor 15107 | -5/Warlord | Identified Exp. Core Analyzer 15184 | -5/Warlord | Found Prototype Energy Cannon 15184 | -5/Warlord | Identified Vortex Driver 15288 | -5/Warlord | Lost 4 allies 15451 | -5/Warlord | Warlord forces counterattacked 15473 | -5/Warlord | Build established: Commander-Sprinter 15506 | -5/Warlord | Spotted Executioner 15509 | -5/Warlord | Spotted Executioner 15534 | -5/Warlord | Allies destroyed Executioner 15539 | -5/Warlord | Allies destroyed Executioner 15559 | -5/Warlord | Discovered new exit (range 12) 15562 | -5/Warlord | Identified exit to Proximity Caves 15570 | -5/Warlord | Lost 8 allies 15648 | -5/Warlord | Lost 8 allies 15701 | -5/Warlord | Spotted Executioner 15716 | -5/Warlord | Entered Proximity Caves 15716 | -4/Proximity Caves | Accompanied by 4 allies 15742 | -4/Proximity Caves | Lost 5 allies 15834 | -4/Proximity Caves | Build established: Hacker-Sprinter 15884 | -4/Proximity Caves | Learned location of Armory (-3) 15963 | -4/Proximity Caves | Spotted B-86 Titan 16057 | -4/Proximity Caves | Dug into a huge 0b10 base via an incomplete storage room 16199 | -4/Proximity Caves | Derelicts attacked a huge 0b10 base 16211 | -4/Proximity Caves | Discovered exit to Factory (range 15) 16413 | -4/Proximity Caves | Fabricated Combat Drone Bay (x1) 16489 | -4/Proximity Caves | Lost 3 allies 16701 | -4/Proximity Caves | Build established: Commander-Mutant 17120 | -4/Proximity Caves | Lost 8 allies 17219 | -4/Proximity Caves | Build established: Commander-Skirmisher 17346 | -4/Proximity Caves | Entered Factory 17346 | -4/Factory | Accompanied by 6 allies 17346 | -4/Factory | Evolved 2 slots: Propulsion x2 17347 | -4/Factory | Identified exit to Extension 17347 | -4/Factory | Identified exit to Upper Caves 17349 | -4/Factory | Loaded intel: 27 terminal locations 17449 | -4/Factory | Found Prototype Launcher 17449 | -4/Factory | Identified Mni. Smartbomb Launcher 17643 | -4/Factory | Build established: Commander-Sprinter 17643 | -4/Factory | Entered Extension 17643 | -4/Extension | Accompanied by 5 allies 17773 | -4/Extension | Rescued a captive Derelict 17774 | -4/Extension | Rescued a captive Derelict 17908 | -4/Extension | Rescued a captive Derelict 17928 | -4/Extension | Rescued a captive Derelict 18290 | -4/Extension | Spotted B-86 Titan 18295 | -4/Extension | Allies destroyed B-86 Titan 18310 | -4/Extension | Spotted B-86 Titan 18323 | -4/Extension | Allies destroyed B-86 Titan 18349 | -4/Extension | Lost 8 allies 18352 | -4/Extension | Rescued a captive Derelict 18394 | -4/Extension | Rescued A7 18414 | -4/Extension | Rescued a captive Derelict 18416 | -4/Extension | Rescued a captive Derelict 18490 | -4/Extension | Lost 3 allies 18536 | -4/Extension | Rescued a captive Derelict 18537 | -4/Extension | Rescued a captive Derelict 18638 | -4/Extension | Rescued a captive Derelict 18639 | -4/Extension | Rescued a captive Derelict 18648 | -4/Extension | Discovered new exit (range 10) 18648 | -4/Extension | Discovered new exit (range 6) 18653 | -4/Extension | Identified exit to Research 18656 | -4/Extension | Identified exit to Cetus 18741 | -4/Extension | Entered Cetus 18741 | -4/Cetus | Accompanied by 22 allies (A7) 18745 | -4/Cetus | Spotted Cetus Guard 18746 | -4/Cetus | Acquired a Cetus Manufacturing Module code from A7 18746 | -4/Cetus | Spotted Cetus Guard 18754 | -4/Cetus | Spotted Cetus Guard 18761 | -4/Cetus | Allies destroyed Cetus Guard 18764 | -4/Cetus | Spotted Cetus Guard 18779 | -4/Cetus | Allies destroyed Cetus Guard 18785 | -4/Cetus | Destroyed Cetus Guard 18792 | -4/Cetus | Allies destroyed Cetus Guard 18819 | -4/Cetus | Lost 7 allies 18832 | -4/Cetus | Started Cetus Manufacturing Module 18839 | -4/Cetus | Escorted A7 to Cetus Mainframe 18857 | -4/Cetus | Manufactured an Enhanced Grunt 18882 | -4/Cetus | Manufactured an Enhanced Grunt 18907 | -4/Cetus | Manufactured an Enhanced Grunt 18932 | -4/Cetus | Manufactured an Enhanced Grunt 18957 | -4/Cetus | Manufactured an Enhanced Grunt 18966 | -4/Cetus | Discovered new exit (range 16) 19028 | -4/Cetus | Spotted Cetus Guard 19028 | -4/Cetus | Spotted Cetus Guard 19028 | -4/Cetus | Spotted Cetus Guard 19028 | -4/Cetus | Spotted Cetus Guard 19028 | -4/Cetus | Allies destroyed Cetus Guard 19035 | -4/Cetus | Allies destroyed Cetus Guard 19036 | -4/Cetus | Allies destroyed Cetus Guard 19047 | -4/Cetus | Discovered exit to Research (range 16) 19051 | -4/Cetus | Met Revision 17 19066 | -4/Cetus | Identified exit to Archives 19151 | -4/Cetus | Entered Archives 19151 | -4/Archives | Accompanied by 18 allies (A7) 19156 | -4/Archives | Received a hacking code to weaken MAIN.C 19183 | -4/Archives | Discovered new exit (range 16) 19191 | -4/Archives | Identified exit to Hub_04(d) 19209 | -4/Archives | Lost 3 allies 19293 | -4/Archives | Discovered exit to Research (range 16) 19343 | -4/Archives | Discovered exit to Hub_04(d) (range 13) 19978 | -4/Archives | Unable to access archive contents 20046 | -4/Archives | Entered Hub_04(d) 20046 | -4/Hub_04(d) | Accompanied by 14 allies 20133 | -4/Hub_04(d) | Network Hub disabled 20137 | -4/Hub_04(d) | Spotted Lightning 20137 | -4/Hub_04(d) | Spotted Lightning 20137 | -4/Hub_04(d) | Spotted Lightning 20138 | -4/Hub_04(d) | Entered Research 20138 | -3/Research | Evolved 2 slots: Utility x2 20139 | -3/Research | Identified exit to Armory 20140 | -3/Research | Loaded intel: 4 garrison access locations 20237 | -3/Research | Identified exit to Testing 20270 | -3/Research | Spotted B-86 Titan 20338 | -3/Research | Revision forces began assault on 0b10 20417 | -3/Research | Met up with Revision 17++ 20475 | -3/Research | Fabricated Cmb. Linear Gravjet (x2) 20544 | -3/Research | Lost 4 allies 20576 | -3/Research | Build established: Wizard-Sprinter 20591 | -3/Research | Central database locked down 20593 | -3/Research | Spotted B-86 Titan 20602 | -3/Research | Spotted B-86 Titan 20618 | -3/Research | Lost 3 parts (3p) 20681 | -3/Research | Entered Testing 20850 | -3/Testing | Found Prototype Device 20851 | -3/Testing | Identified Exp. Hardlight Generator 20883 | -3/Testing | Found Quantum Capacitor 20938 | -3/Testing | Fabricated Exp. Hacking Suite (x1) 20985 | -3/Testing | Build established: Wizard-Mutant 21171 | -3/Testing | Found Prototype Energy Cannon 21171 | -3/Testing | Identified Cld. Nova Cannon 21213 | -3/Testing | Found Prototype Energy Cannon 21263 | -3/Testing | Discovered new exit (range 13) 21317 | -3/Testing | Found Prototype Device 21333 | -3/Testing | Repaired Centrium Medium Armor Plating? 21342 | -3/Testing | Identified Exp. Thermal Shield 21342 | -3/Testing | Identified Null Cannon 21352 | -3/Testing | Fabricated Femtoactuators? 21445 | -3/Testing | Identified exit to Research 21468 | -3/Testing | Entered Research 21468 | -2/Research | Warlord forces began assault on 0b10 21468 | -2/Research | Evolved 2 slots: Propulsion x1, Utility x1 21501 | -2/Research | Build established: Hacker-Skirmisher 21532 | -2/Research | Identified exit to Quarantine 21578 | -2/Research | Research machine network offline 21674 | -2/Research | Discovered new exit (range 13) 21698 | -2/Research | Met up with Warlord 21727 | -2/Research | Found Thermal Barrier 21771 | -2/Research | P-80 Master assimilated allied 0M-IYB(m) 22003 | -2/Research | Met DD-05H 22026 | -2/Research | Found Prototype Processor 22026 | -2/Research | Identified Exp. Melee Analysis Suite 22235 | -2/Research | Found Prototype Device 22235 | -2/Research | Identified Exp. Shock Absorption System 22246 | -2/Research | Spotted Striker 22334 | -2/Research | Build established: Hacker-Gladiator 22460 | -2/Research | Entered Quarantine 22519 | -2/Quarantine | Found Sigix Corpse 22729 | -2/Quarantine | Identified exit to Access 22762 | -2/Quarantine | Found Alien Slashing Weapon 22762 | -2/Quarantine | Identified Sigix Broadsword 22788 | -2/Quarantine | Entered Access 22788 | -1/Access | Evolved 2 slots: Power x1, Utility x1 22789 | -1/Access | Identified exit to Command 22840 | -1/Access | Garrison activated, responded to threat 22903 | -1/Access | Entered Command 23385 | -1/Command | Repaired Centrium Medium Armor Plating 23496 | -1/Command | Spotted Combat Programmer 23510 | -1/Command | Spotted Combat Programmer 23516 | -1/Command | System corruption reached 10% 23517 | -1/Command | Destroyed Combat Programmer 23529 | -1/Command | Destroyed Combat Programmer 23618 | -1/Command | Disengaged cave seal 23618 | -1/Command | Derelicts emerged from the dark tunnel 23618 | -1/Command | Welcomed Warlord to Command 23629 | -1/Command | Spotted M Guard 23664 | -1/Command | Destroyed M Guard 23718 | -1/Command | Lost 12 allies 23772 | -1/Command | Warlord commented on Warlord statues 23782 | -1/Command | Spotted M Guard 23793 | -1/Command | All MAIN.C guards destroyed 23864 | -1/Command | Met MAIN.C 23864 | -1/Command | Hacked MAIN.C using A7's code 23882 | -1/Command | 0b10 Conduit disabled 23896 | -1/Command | MAIN.C activated Command garrisons 23917 | -1/Command | Warlord destroyed during the assault 23942 | -1/Command | Destroyed MAIN.C 23966 | -1/Command | Discovered new exit (range 38) 23966 | -1/Command | Discovered new exit (range 102) 23966 | -1/Command | Extracted map data and part IDs from MAIN.C's data core 23993 | -1/Command | Spotted B-99 Colossus 24233 | -1/Command | Build established: Hacker-Mutant 24763 | -1/Command | Found Gamma Refractor 24784 | -1/Command | Found Exp. Transmission Jammer 24786 | -1/Command | Found Exp. System Purifier 24789 | -1/Command | Found Zero-point Reactor 24906 | -1/Command | Found Vortex Chain Reactor 25206 | -1/Command | Build established: Tank 25541 | *** | Establishing 0b11! Last Messages --------------- 25394_ B-99 Colossus is broken beyond repair. 25395_ Attempting to rewire B-99 Colossus. 25395_ B-99 Colossus is broken beyond repair. 25396_ Attempting to rewire B-99 Colossus. 25396_ B-99 Colossus is broken beyond repair. 25397_ Attempting to rewire B-99 Colossus. 25397_ B-99 Colossus is broken beyond repair. 25398_ Attempting to rewire B-99 Colossus. 25398_ B-99 Colossus is broken beyond repair. 25439_ Acquired Remote Force Field. 25440_ Dropped Remote Force Field. 25479_ Acquired Unknown Processor. 25479_ Identified Imp. Melee Analysis Suite. 25483_ Acquired 8 matter. 25485_ Acquired 1 matter. 25487_ Acquired 5 matter. 25489_ Acquired 6 matter. [Achievement: I Was Wrong!] [Achievement: Collector] [Achievement: Commander 0b11] Map ----- +----------------------------------------------------+ | ???????????# #???????????# #???????????? | | ???????????# #???????????# ####????????? | | ???????????# #???????????# + #????????? | | ???????????# #???????????#[ # #????????? | | ???????????# #???????????# # #????????? | | ???????????# ]#???????????# + #????????? | | ???????????# #???????????# # #????????? | | ???????????# #???????????##+### #????????? | | ################+##+############## #????????? | | #????????? | | #????????? | | #????????? | | #????????? | | ##################### #????????? | | ????????????????????# #????????? | | ???????###########??# #????????? | | ???????# = #??# #????????? | | ???????# !! #??# #????????? | | ??###### !! #??# #????????? | | ### # ! #### #????????? | | # + ##???????? | | " ############# "#???????? | | ###!! # #???????????# ##???????? | | ??##=[## #?????####### #????????? | | ##?# ############?????# ##" #????????? | | #?# ####### ####### @ ##" #????????? | | #?# "" ##" #????????? | | #?# "T ##T ##???????? | | #?# ####### ############" "#???????? | | #?# #?????######??????????#" ##???????? | | #?# #?????????????????????#" #????????? | | #?# ######################## ! #????????? | | ### * =%% #????????? | | = #????????? | | ! #????????? | | #### * ]!##### #????##### | | # ###### ! #??##*=% #????#???? | | # !!! #????# #??#"%/ ##????#?### | | + !! #????# #?##" #?????#?#"" | | # ! !! #????# #?# % #?????#?#"" | | # ######????# #?# ! % #?????#?#"" | | # #??########+########?###%= #?????#?#"" | | # #??# ########* ##?????#?#" | | #### #??# # # #??????#?#"" | | ?### #### # + ####???#?#"" | | ## ## + " """#???#?# " | | ## # # T"#???#?# | | ## ######## """#???#?# | | ## "" + ####???#?# | | ## """" ######## #??????#?#" | +----------------------------------------------------+ Best States ------------- Heat Dissipation 90 Coolant Potential 240 Energy Generation 83 Energy Capacity 840 Matter Stores 300 Matter Capacity 300 Sight Range 20 Robot Scan Range 16 Terrain Scan Range 20 Terrain Scan Density 210 Jamming Range 22 Additional Mass Support 16 Base Temperature (-) 100 Corruption Containment 12 Armor Coverage 450 Resistance: KI 30 Propulsion Shielding 66 Point Defense Rating 240 Melee Speed Boost 50 Evasion (%) 76 Targeting Accuracy 8 Melee Accuracy 20 Core Analysis 6 Recoil Reduction 4 Salvage Targeting 1 Offensive Hacking 64 Defensive Hacking 12 Authchip Count 1 Item Schematics ----------------- Imp. Hacking Suite | -7/Factory | Hacked Combat Drone Bay | -6/Data Miner | Free Lgt. Regenerative Plating | -6/Data Miner | Free Enh. Armored Leg | -6/Data Miner | Free Prc. Energy Filter | -6/Data Miner | Free Enh. Force Rifle | -6/Data Miner | Free Impulse Thruster | -6/Data Miner | Free Point Defense Array | -6/Data Miner | Free Hardcell Cannon | -6/Data Miner | Free Arm. Huge Wheel | -5/Factory | Scanalyzed Cmb. Linear Gravjet | -4/Extension | Hacked Nanoactuators | -4/Hub_04(d) | Hacked Exp. Hacking Suite | -3/Research | Hacked Adv. Actuator Array | -3/Research | Hacked Femtoactuators | -3/Testing | Hacked Centrium Medium Armor Plating | -3/Testing | Hacked Nanosword | -2/Research | Hacked Robot Schematics ------------------ B-48 Gladiator | -6/Data Miner | Free M-22 Extractor | -6/Data Miner | Free P-70 Sage | -6/Data Miner | Free X-62 Marksman | -6/Data Miner | Free Y-64 Sentinel | -6/Data Miner | Free Fabricated ------------ Imp. Hacking Suite | x1 | -7/Factory Arm. Huge Wheel | x2 | -5/Factory | Authchip Combat Drone Bay | x1 | -4/Proximity Caves Cmb. Linear Gravjet | x2 | -3/Research Exp. Hacking Suite | x1 | -3/Testing Femtoactuators | x1 | -3/Testing Alien Tech Used ----------------- Sigix Broadsword Achievements -------------- Collector Commander 0b11 I Was Wrong! void main() Challenges ------------ None Game ------ Seed HelicalVisualImmobilizer Manual? 0 Play Time 06:55:05 Cumulative 227.8 hours Start 2024.09.28 @ 09:02:19 End 2024.09.29 @ 12:11:50 Sessions 21 Manual Loads 0 Difficulty Rogue Special Mode None Game No. 145 Rogue 145 Adventurer 0 Explorer 0 Win Type 1 Total 10 Types 3/1/4/1/0/0/1/0/0 Lore% 75 Gallery% 75 Achievement% 67 Wizard Run 0 Options --------- Layout 0 ASCII 0 Keyboard 0 Movement Arrows Keybinds 0 Fullscreen 2 Font 18/SmallcapsGlow Map View 76x50 Zoom Use 0% Tactical HUD 1 Map Filters NONE Filters NONE Steam 1 RUN: f74233f7-c376-4cf3-934b-1ce5d842a530